Workbook

Sheet Sheet1
E1: HIT BY "N" TRY
A2: P * | B2: 0.35 | E2: DC * | F2: 0.99
A3: Q | B3: =1-B2 -> 0.65 | E3: N | F3: =LOG(1-F2)/(LOG(F5)) -> 10.69023402
E4: P | F4: =B2 -> 0.35
A5: # V * | E5: Q | F5: =1-F4 -> 0.65
A6: 5 | B6: =$B$2*($B$3^(A6-1)) -> 0.0624771875 | C6: =1-($B$3^$A6) -> 0.8839709375
D7: PROB OF" X" WINS IN "N" TRIES:
A8: N | B8: ON "N" | C8: BY "N" | D8: X | E8: 3 | F8: WINS *
A9: 1 | B9: =$B$2*($B$3^(A9-1)) -> 0.35 | C9: =1-($B$3^$A9) -> 0.35 | D9: N | E9: 5 | F9: TRIES *
A10: =A9+1 -> 2 | B10: =$B$2*($B$3^(A10-1)) -> 0.2275 | C10: =1-($B$3^$A10) -> 0.5775
A11: =A10+1 -> 3 | B11: =$B$2*($B$3^(A11-1)) -> 0.147875 | C11: =1-($B$3^$A11) -> 0.725375 | D11: PROB | E11: =(B2^E8)*(B3^(E9-E8)) -> 0.0181146875 | F11: ANY 1 TRY
A12: 4 | B12: 0.09611875 | C12: 0.82149375
A13: 5 | B13: 0.0624771875 | C13: 0.8839709375 | F13: # OF OUTCOMES WHERE
A14: 6 | B14: 0.04061017188 | C14: 0.9245811094 | E14: =COMBIN(E9,E8) -> 10 | F14: WE HAVE | G14: =E8 -> 3 | H14: WINS
A15: 7 | B15: 0.02639661172 | C15: 0.9509777211 | F15: IN | G15: =E9 -> 5 | H15: TRIES
A16: 8 | B16: 0.01715779762 | C16: 0.9681355187
A17: 9 | B17: 0.01115256845 | C17: 0.9792880872 | D17: PROB | E17: =E11*E14 -> 0.181146875 | F17: OF X WINS IN N TRIES
A18: 10 | B18: 0.007249169493 | C18: 0.9865372567
A19: 11 | B19: 0.004711960171 | C19: 0.9912492168 | F19: N = 10
A20: 12 | B20: 0.003062774111 | C20: 0.9943119909 | E20: X | F20: EXACTLY | G20: < =
A21: 13 | B21: 0.001990803172 | C21: 0.9963027941 | E21: 0 | F21: =BINOMDIST($E21,$E$9,$B$2,FALSE) -> 0.1160290625 | G21: =BINOMDIST($E21,$E$9,$B$2,TRUE) -> 0.1160290625
A22: 14 | B22: 0.001294022062 | C22: 0.9975968162 | E22: 1 | F22: =BINOMDIST(E22,E$31,B$2,FALSE) -> 0.07249169493 | G22: =BINOMDIST($E22,$E$9,$B$2,TRUE) -> 0.428415
A23: 15 | B23: 0.0008411143402 | C23: 0.9984379305 | E23: =E22+1 -> 2 | F23: =BINOMDIST(E23,E$31,B$2,FALSE) -> 0.1756529531 | G23: =BINOMDIST($E23,$E$9,$B$2,TRUE) -> 0.764830625
A24: 16 | B24: 0.0005467243211 | C24: 0.9989846548 | E24: =E23+1 -> 3 | F24: =BINOMDIST(E24,E$31,B$2,FALSE) -> 0.252219625 | G24: 0.9459775
A25: 17 | B25: 0.0003553708087 | C25: 0.9993400256 | E25: 4 | F25: 0.2376684928 | G25: 0.9947478125
A26: 18 | B26: 0.0002309910257 | C26: 0.9995710167 | E26: 5 | F26: 0.1535704107 | G26: 1
A27: 19 | B27: 0.0001501441667 | C27: 0.9997211608 | E27: 6 | F27: 0.06890979968
A28: 20 | B28: 9.759370835e-05 | C28: 0.9998187545 | E28: 7 | F28: 0.02120301529
A29: 21 | B29: 6.343591043e-05 | C29: 0.9998821905 | E29: 8 | F29: 0.004281378086
A30: 22 | B30: 4.123334178e-05 | C30: 0.9999234238 | E30: 9 | F30: 0.0005123016514
A31: 23 | B31: 2.680167216e-05 | C31: 0.9999502255 | E31: 10 | F31: 2.758547354e-05
A32: 24 | B32: 1.74210869e-05 | C32: 0.9999676466
A33: 25 | B33: 1.132370649e-05 | C33: 0.9999789703
A34: 26 | B34: 7.360409216e-06 | C34: 0.9999863307
A35: 27 | B35: 4.78426599e-06 | C35: 0.9999911149
A36: 28 | B36: 3.109772894e-06 | C36: 0.9999942247
A37: 29 | B37: 2.021352381e-06 | C37: 0.9999962461
A38: 30 | B38: 1.313879048e-06 | C38: 0.9999975599
A39: 31 | B39: 8.540213809e-07 | C39: 0.999998414
A41: ASTERIX = INPUT ITEM
A42: "DC" = DEGREE OF CONFIDENCE
A43: "P" = PROBABILITY OF A HIT
A44: "Q" = PROBABILITY OF NO HIT
A45: "N" = PLAY WHEN HIT COMES
A46: "X" = NUMBER OF WINS | G46: BERNOULLI.XLS

Sheet Sheet2

Sheet Sheet3
